bitfinex-derivatives/quotes_ETHF0:USTF0_20230105
["timestamp","ask_amount","ask_price","bid_price","bid_amount"]
[1672943778423,5.48986958,1251.7,1251.6,3.68972498]
[1672943778628,2.5,1251.7,1251.6,3.68972498]
[1672943778839,2.5,1251.7,1251.6,2.5]
[1672943779691,2.5,1251.7,1251.5,5.47304318]
[1672943779896,2.99289181,1251.6,1251.5,5.47304318]
[1672943782532,2.99289181,1251.6,1251.5,3.68972498]
[1672943783794,2.99289181,1251.6,1251.5,5.47304318]
[1672943784313,2.99289181,1251.6,1251.5,3.68972498]
[1672943785049,2.99289181,1251.6,1251.5,5.47304318]
[1672943785792,2.99289181,1251.6,1251.5,4.2833182]
[1672943786001,2.99289181,1251.6,1251.5,5.47331309]
[1672943786317,2.99289181,1251.6,1251.5,2.97331309]
[1672943786724,2.99289181,1251.6,1251.5,5.47331309]
[1672943786944,2.99289181,1251.6,1251.5,5.47335261]
[1672943788526,2.99289181,1251.6,1251.5,2.97335261]
[1672943789153,2.99289181,1251.6,1251.5,5.47335261]
[1672943789880,2.99289181,1251.6,1251.5,2.97335261]
[1672943790092,2.99289181,1251.6,1251.5,4.2833182]
[1672943790623,2.99289181,1251.6,1251.5,5.47329767]
[1672943790840,5.49289181,1251.7,1251.5,4.2833182]
[1672943791145,2.5,1251.7,1251.6,1.18990244]
[1672943791360,2.5,1251.7,1251.5,5.47322064]
[1672943791573,2.99310161,1251.6,1251.5,3.68990244]
[1672943791991,2.99310161,1251.6,1251.5,1.18990244]
[1672943793153,9.30921037,1251.7,1251.4,4.47322064]
[1672943793362,2.9933325,1251.5,1251.4,4.47322064]
[1672943795041,2.9933325,1251.5,1251.4,2.97322064]
[1672943795248,2.9933325,1251.5,1251.4,1.18990244]
[1672943796199,5.4933325,1251.5,1251.4,1.18990244]
[1672943796412,5.4933325,1251.5,1251.4,2.97322064]
[1672943797039,5.4933325,1251.5,1251.4,1.18990244]
[1672943798087,2.5,1251.5,1251.4,1.18990244]
[1672943798304,2.5,1251.5,1251.3,2.97322064]
[1672943798512,2.99322301,1251.4,1251.3,2.97322064]
[1672943799450,2.99322301,1251.4,1251.3,1.18990244]
[1672943800822,2.99322301,1251.4,1251.2,2.97322064]
[1672943801028,5.49322301,1251.3,1251.2,1.18990244]
[1672943803870,5.49322301,1251.3,1251.1,2.97322064]
[1672943804295,8.70102301,1251.3,1251.1,2.97322064]
[1672943804817,8.70102301,1251.3,1251.1,1.18990244]
[1672943805240,8.70102301,1251.3,1251.1,2.97322064]
[1672943805556,8.70102301,1251.3,1251.1,1.18990244]
[1672943806181,5.49322301,1251.3,1251.1,1.18990244]
[1672943806391,5.49322301,1251.3,1251.1,1.18393783]
[1672943808707,5.49322301,1251.3,1251.1,2.5]
[1672943810491,2.5,1251.3,1251.1,2.5]
[1672943811028,5.49322301,1251.3,1251.0,4.2833182]
[1672943811442,3.2078,1251.2,1250.9,4.9911182]
[1672943811752,2.5,1251.1,1250.9,4.9911182]
[1672943811970,2.5,1251.1,1250.9,7.4911182]
[1672943812389,2.5,1251.1,1251.0,2.5]
[1672943813963,5.49322301,1251.3,1251.0,2.5]
[1672943814165,2.5,1251.3,1251.0,2.5]
[1672943814490,5.49322301,1251.3,1251.0,2.5]
[1672943814918,2.5,1251.3,1251.0,2.5]
[1672943822053,5.49322301,1251.3,1251.0,2.5]
[1672943822486,2.5,1251.3,1251.0,2.5]
[1672943823536,2.5,1251.3,1250.9,7.4911182]
[1672943823748,5.49322301,1251.3,1251.0,2.5]
[1672943823950,8.70102301,1251.3,1251.0,2.5]
[1672943825633,5.7078,1251.3,1251.0,2.5]
[1672943826381,8.70102301,1251.3,1251.0,2.5]
[1672943826693,5.49322301,1251.3,1251.0,2.5]
[1672943827540,2.5,1251.3,1251.0,4.2833182]
[1672943828167,2.5,1251.3,1251.0,2.5]
[1672943828168,5.49322301,1251.3,1251.0,2.5]
[1672943829113,5.49322301,1251.3,1251.0,4.2833182]
[1672943829956,5.49322301,1251.3,1251.0,2.5]
[1672943830268,5.49322301,1251.3,1251.0,4.2833182]
[1672943830479,5.49322301,1251.3,1251.0,2.5]
[1672943830889,5.49322301,1251.3,1251.0,4.2833182]
[1672943832369,6.20102301,1251.2,1250.9,9.87426698]
[1672943832688,2.5,1251.1,1250.9,9.87426698]
[1672943833003,2.5,1251.1,1251.0,1.7833182]
[1672943833213,2.5,1251.1,1251.0,2.5]
[1672943835311,5.49322301,1251.1,1250.9,7.4911182]
[1672943836468,2.5,1251.1,1251.0,1.7833182]
[1672943836680,2.5,1251.1,1251.0,4.2833182]
[1672943837100,2.5,1251.1,1251.0,1.7833182]
[1672943839096,5.49322301,1251.1,1251.0,1.7833182]
[1672943840042,5.49322301,1251.1,1250.9,7.37426698]
[1672943840260,5.49322301,1251.1,1250.9,4.9911182]
[1672943840470,5.49322301,1251.1,1250.9,7.37426698]
[1672943840783,5.49322301,1251.1,1251.0,1.7833182]
[1672943840993,5.49322301,1251.1,1250.9,7.37426698]
[1672943841407,2.99322301,1251.0,1250.9,1.7833182]
[1672943842154,5.49322301,1251.1,1250.9,4.16646698]
[1672943842566,5.49322301,1251.1,1250.9,1.7833182]
[1672943842886,2.99322301,1251.0,1250.9,4.16646698]
[1672943843092,5.49322301,1251.1,1250.9,4.16646698]
[1672943843307,5.49322301,1251.1,1251.0,1.7833182]
[1672943843518,2.5,1251.1,1250.9,1.7833182]
[1672943843730,2.99486147,1251.0,1250.9,1.7833182]
[1672943843936,5.49486147,1251.1,1250.9,1.7833182]
[1672943844141,2.99486147,1251.0,1250.9,1.7833182]
[1672943847938,2.99486147,1251.0,1250.8,1.7833182]
[1672943848138,2.5,1250.9,1250.8,4.2833182]
[1672943848460,2.5,1250.9,1250.8,1.7833182]
[1672943855602,2.5,1250.9,1250.7,4.16646698]
[1672943856026,5.49486147,1250.9,1250.7,1.7833182]
[1672943856958,2.5,1250.9,1250.7,1.7833182]
[1672943857168,3.2078,1250.8,1250.6,4.16646698]
[1672943857383,2.5,1250.7,1250.6,1.7833182]
[1672943859379,2.5,1250.7,1250.5,6.66646698]
[1672943860855,2.5,1250.7,1250.6,1.7833182]
[1672943861169,2.5,1250.7,1250.6,2.5]
[1672943861802,2.5,1250.7,1250.5,6.66646698]
[1672943862012,2.5,1250.7,1250.6,1.7833182]
[1672943862223,2.5,1250.7,1250.6,4.2833182]
[1672943862851,2.5,1250.7,1250.5,6.66646698]
[1672943863262,2.5,1250.7,1250.5,4.2833182]
[1672943863582,2.5,1250.7,1250.5,6.66646698]
[1672943864953,2.5,1250.7,1250.5,4.2833182]
[1672943866323,2.5,1250.7,1250.5,6.66646698]
[1672943867046,2.5,1250.7,1250.5,4.16646698]
[1672943867264,2.5,1250.7,1250.5,1.7833182]
[1672943867681,2.5,1250.7,1250.5,4.2833182]
[1672943867993,2.5,1250.7,1250.5,1.7833182]
[1672943868416,10.501,1250.7,1250.5,1.7833182]
[1672943869154,10.501,1250.7,1250.4,6.66646698]
[1672943869358,3.2078,1250.6,1250.4,4.16646698]
[1672943869571,2.5,1250.5,1250.4,1.7833182]
[1672943871245,2.5,1250.5,1250.3,1.7833182]
[1672943873984,5.7078,1250.5,1250.3,4.16646698]
[1672943874196,5.7078,1250.5,1250.3,1.7833182]
[1672943874512,5.7078,1250.5,1250.3,4.16646698]
[1672943874725,5.7078,1250.5,1250.3,1.7833182]
[1672943877767,5.7078,1250.5,1250.3,4.2833182]
[1672943878085,5.7078,1250.5,1250.3,1.7833182]
[1672943880710,5.7078,1250.5,1250.3,4.2833182]
[1672943881446,5.7078,1250.5,1250.3,1.7833182]
[1672943882183,5.7078,1250.5,1250.3,4.2833182]
[1672943882391,5.7078,1250.5,1250.3,1.7833182]
[1672943882703,5.7078,1250.5,1250.4,1.7833182]
[1672943882925,5.7078,1250.5,1250.4,4.2833182]
[1672943883234,5.7078,1250.5,1250.4,1.7833182]
[1672943883429,2.5,1250.5,1250.4,1.7833182]
[1672943885229,2.49670091,1250.5,1250.4,1.7833182]
[1672943885443,2.49670091,1250.5,1250.4,4.2833182]
[1672943886492,2.49670091,1250.5,1250.4,1.7833182]
[1672943887019,2.5,1250.5,1250.4,1.7833182]
[1672943887855,2.5,1250.5,1250.4,4.16646698]
[1672943888064,2.5,1250.7,1250.4,8.09094878]
[1672943888381,2.5,1250.7,1250.5,4.28459032]
[1672943889531,2.5,1250.7,1250.5,1.78459032]
[1672943890594,2.5,1250.7,1250.5,4.28459032]
[1672943890807,2.5,1250.7,1250.5,1.78459032]
[1672943891223,2.5,1250.7,1250.5,4.28459032]
[1672943891434,2.5,1250.7,1250.5,1.78459032]
[1672943892485,2.5,1250.7,1250.5,4.28459032]
[1672943892798,2.5,1250.7,1250.5,1.78459032]
[1672943893218,2.5,1250.7,1250.5,4.28459032]
[1672943895102,5.49486147,1250.7,1250.5,4.1677391]
[1672943895532,2.5,1250.7,1250.5,4.1677391]
[1672943896468,5.49486147,1250.7,1250.5,4.1677391]
[1672943897001,5.49486147,1250.7,1250.6,1.78459032]
[1672943897326,5.49486147,1250.7,1250.6,2.5]
[1672943897633,5.49486147,1250.7,1250.5,5.6677391]
[1672943898064,5.49486147,1250.7,1250.6,1.78459032]
[1672943898265,5.49486147,1250.7,1250.6,4.28459032]
[1672943898471,5.49486147,1250.7,1250.6,1.78459032]
[1672943898793,5.49486147,1250.7,1250.5,5.6677391]
[1672943899742,8.70266147,1250.7,1250.5,5.6677391]
[1672943899946,8.70266147,1250.7,1250.5,4.1677391]
[1672943900475,8.70266147,1250.7,1250.6,1.78459032]
[1672943900688,8.70266147,1250.7,1250.6,4.28459032]
[1672943900998,5.49486147,1250.7,1250.6,1.78459032]
[1672943902157,5.49486147,1250.7,1250.5,4.1677391]
[1672943902576,5.49486147,1250.7,1250.5,1.78459032]
[1672943903626,8.70266147,1250.7,1250.5,1.78459032]
[1672943904992,8.70266147,1250.7,1250.5,4.1677391]
[1672943907308,2.99486147,1250.6,1250.5,4.1677391]
[1672943908043,2.99486147,1250.6,1250.5,1.78459032]
[1672943908471,8.70266147,1250.7,1250.5,4.1677391]
[1672943909735,8.70266147,1250.7,1250.6,1.78459032]
[1672943910366,8.70266147,1250.7,1250.5,6.6677391]
[1672943910783,2.99486147,1250.6,1250.5,6.6677391]
[1672943910990,8.70266147,1250.7,1250.5,6.6677391]
[1672943911412,2.99486147,1250.6,1250.5,4.1677391]
[1672943914148,2.99486147,1250.6,1250.5,2.38314878]
[1672943916452,5.49486147,1250.7,1250.5,2.38314878]
[1672943916663,8.70266147,1250.7,1250.6,4.28905229]
[1672943916881,5.7078,1250.7,1250.6,4.28905229]
[1672943917195,5.7078,1250.7,1250.6,1.78905229]
[1672943918459,5.7078,1250.7,1250.6,4.28905229]
[1672943918771,5.7078,1250.7,1250.6,1.78905229]
[1672943918980,13.7088,1250.7,1250.5,1.78905229]
[1672943919187,2.99812188,1250.6,1250.5,4.17220107]
[1672943919513,2.99812188,1250.6,1250.5,6.3005422]
[1672943921402,2.99812188,1250.6,1250.5,3.8005422]
[1672943921923,2.99812188,1250.6,1250.5,2.38314878]
[1672943922137,2.99812188,1250.6,1250.5,4.17275996]
[1672943923293,2.99812188,1250.6,1250.5,2.38314878]
[1672943924656,13.7088,1250.7,1250.5,1.78955872]
[1672943924866,2.99759149,1250.6,1250.5,1.78955872]
[1672943927599,2.99759149,1250.6,1250.5,4.1727075]
[1672943928019,2.99759149,1250.6,1250.5,1.78955872]
[1672943928233,2.99759149,1250.6,1250.5,4.1727075]
[1672943928552,2.99759149,1250.6,1250.5,1.78955872]
[1672943928758,2.99759149,1250.6,1250.5,4.1727075]
[1672943929286,2.99759149,1250.6,1250.5,1.78955872]
[1672943929696,2.99759149,1250.6,1250.5,4.1727075]
[1672943930123,2.99759149,1250.6,1250.5,1.78955872]
[1672943932434,17.31021037,1250.7,1250.5,1.19295976]
[1672943932647,17.31021037,1250.7,1250.4,3.69295976]
[1672943932850,3.2078,1250.5,1250.3,2.98251848]
[1672943933062,5.4958265,1250.4,1250.3,2.98251848]
[1672943934841,2.5,1250.4,1250.3,2.98251848]
[1672943935057,2.5,1250.4,1250.3,1.78955872]
[1672943935267,2.5,1250.4,1250.3,2.9815921]
[1672943936011,2.5,1250.4,1250.3,2.98163663]
[1672943936328,2.5,1250.4,1250.3,1.78955872]
[1672943937378,2.5,1250.4,1250.3,4.1727075]
[1672943937791,2.5,1250.4,1250.3,1.78955872]
[1672943938112,8.7036265,1250.5,1250.3,4.1727075]
[1672943938424,2.5,1250.4,1250.3,4.1727075]
[1672943939897,2.5,1250.4,1250.3,1.78955872]
[1672943940099,2.5,1250.4,1250.3,4.1727075]
[1672943940309,2.5,1250.4,1250.3,1.78955872]
[1672943940527,8.7036265,1250.5,1250.3,4.1727075]
[1672943940733,5.4958265,1250.5,1250.4,1.19163352]
[1672943940945,5.4958265,1250.5,1250.4,3.69163352]
[1672943942631,2.5,1250.5,1250.4,3.69163352]
[1672943943575,2.5,1250.5,1250.4,1.19163352]
[1672943943890,5.4958265,1250.5,1250.4,3.69163352]
[1672943944415,2.5,1250.5,1250.4,3.69163352]
[1672943945365,5.4958265,1250.5,1250.4,3.69163352]
[1672943945888,2.5,1250.5,1250.4,3.69163352]
[1672943946092,2.5,1250.5,1250.4,5.48119224]
[1672943946304,2.5,1250.5,1250.4,3.69163352]
[1672943946515,5.4958265,1250.5,1250.4,3.69163352]
[1672943947147,5.4958265,1250.5,1250.4,1.19163352]
[1672943947353,2.5,1250.5,1250.4,1.19163352]
[1672943947563,5.4958265,1250.5,1250.4,1.19163352]
[1672943948408,5.4958265,1250.5,1250.3,5.48119224]
[1672943948618,5.4958265,1250.5,1250.4,1.19163352]
[1672943948938,5.4958265,1250.5,1250.4,3.69163352]
[1672943949151,5.4958265,1250.5,1250.4,1.19163352]
[1672943949360,5.4958265,1250.5,1250.3,2.98119224]
[1672943949672,3.2078,1250.4,1250.3,1.19163352]
[1672943953031,3.2078,1250.4,1250.3,2.98119224]
[1672943953350,5.4958265,1250.5,1250.3,1.78955872]
[1672943953666,5.4958265,1250.5,1250.4,1.19168052]
[1672943953877,5.4958265,1250.5,1250.4,3.69168052]
[1672943955030,5.4958265,1250.5,1250.4,1.19168052]
[1672943957443,5.4958265,1250.5,1250.4,3.69168052]
[1672943958189,5.4958265,1250.5,1250.4,1.19168052]
[1672943958919,5.4958265,1250.5,1250.4,2.98123924]
[1672943959234,2.5,1250.5,1250.4,5.48123924]
[1672943959652,2.5,1250.5,1250.4,2.98123924]
[1672943960072,5.4958265,1250.5,1250.4,1.19168052]
[1672943960287,14.2046265,1250.6,1250.4,5.48123924]
[1672943960491,2.5,1250.5,1250.4,5.48123924]
[1672943961015,5.4958265,1250.5,1250.4,5.48123924]
[1672943961226,2.5,1250.5,1250.4,5.48123924]
[1672943961439,5.4958265,1250.5,1250.4,5.48123924]
[1672943962279,2.9958265,1250.5,1250.4,5.48123924]
[1672943962495,14.2046265,1250.6,1250.4,5.48123924]
[1672943962805,14.2046265,1250.6,1250.5,1.19204832]
[1672943963022,14.2046265,1250.6,1250.5,3.69204832]
[1672943963539,14.2046265,1250.6,1250.5,1.19204832]
[1672943964702,10.9968265,1250.6,1250.5,1.19204832]
[1672943965646,2.9958265,1250.6,1250.5,1.19204832]
[1672943966594,17.31021037,1250.7,1250.5,1.19204832]
[1672943969220,2.9962828,1250.6,1250.5,1.19204832]
[1672943969430,17.31021037,1250.7,1250.5,1.19204832]
[1672943974262,21.51082453,1250.7,1250.5,1.19204832]
[1672943975105,3.60141037,1250.6,1250.5,1.19204832]
[1672943975843,17.31021037,1250.7,1250.5,1.19204832]
[1672943978157,2.99709861,1250.6,1250.5,2.98160704]
[1672943978574,17.31021037,1250.7,1250.5,2.98160704]
[1672943978792,2.99703521,1250.6,1250.5,2.98160704]
[1672943979114,17.31021037,1250.7,1250.5,2.98160704]
[1672943979739,14.10241037,1250.7,1250.5,2.98160704]
[1672943979956,14.10241037,1250.7,1250.5,1.19204832]
[1672943981112,3.2078,1250.6,1250.5,1.19204832]
[1672943981428,6.80921037,1250.6,1250.4,2.98160704]
[1672943981641,5.49723842,1250.5,1250.4,2.98160704]
[1672943983320,2.99723842,1250.5,1250.4,1.78955872]
[1672943983741,2.99723842,1250.5,1250.4,4.28955872]
[1672943983951,2.99723842,1250.5,1250.4,8.09094878]
[1672943984163,2.99723842,1250.6,1250.4,8.09094878]
[1672943984476,9.30921037,1250.7,1250.5,1.19259093]
[1672943986252,6.10141037,1250.7,1250.5,1.19259093]
[1672943986468,9.30921037,1250.7,1250.5,1.19259093]
[1672943989204,6.10141037,1250.7,1250.5,1.19259093]
[1672943991841,9.30921037,1250.7,1250.5,1.19259093]
[1672943992247,13.50982453,1250.7,1250.5,1.19259093]
[1672943992781,13.50982453,1250.7,1250.5,2.98147732]
[1672943993204,13.50982453,1250.7,1250.5,1.19259093]
[1672943993835,13.50982453,1250.7,1250.5,2.98147732]
[1672943994145,9.30921037,1250.7,1250.5,2.98147732]
[1672943994465,13.50982453,1250.7,1250.5,2.98147732]
[1672943995829,3.60141037,1250.6,1250.5,1.19259093]
[1672943996981,6.80921037,1250.6,1250.5,1.19259093]
[1672943997613,3.60141037,1250.6,1250.5,1.19259093]
[1672943997821,6.80921037,1250.6,1250.5,1.19259093]
[1672943999083,3.60141037,1250.6,1250.5,1.19259093]
[1672943999298,6.80921037,1250.6,1250.5,1.19259093]
[1672944000032,0.00302005,1250.5,1250.4,2.98147732]
[1672944000981,0.00302005,1250.5,1250.4,1.78888639]
[1672944001194,3.00135179,1250.5,1250.4,1.78888639]
[1672944001398,2.50302005,1250.5,1250.4,1.78888639]
[1672944001608,5.50136925,1250.5,1250.4,1.78888639]
[1672944001828,0.00302005,1250.5,1250.4,1.78888639]
[1672944002352,3.00126649,1250.5,1250.4,1.78888639]
[1672944002556,3.00122501,1250.5,1250.4,1.78888639]
[1672944004559,3.00122501,1250.5,1250.4,3.8006531]
[1672944005086,0.00302005,1250.5,1250.4,3.8006531]
[1672944006559,0.00302005,1250.5,1250.4,7.0084531]
[1672944007187,3.00122501,1250.5,1250.4,7.0084531]
[1672944007924,0.00302005,1250.5,1250.4,7.0084531]
[1672944008868,3.00122501,1250.5,1250.4,5.59094878]
[1672944009289,3.00122501,1250.5,1250.4,7.38045913]
[1672944009489,3.00122501,1250.5,1250.4,7.38050298]
[1672944009813,3.00122501,1250.5,1250.4,5.59094878]
[1672944011493,3.00122501,1250.5,1250.4,7.00845771]
[1672944011719,0.00302005,1250.5,1250.4,7.00845771]
[1672944012433,3.00122501,1250.5,1250.4,5.59094878]
[1672944013919,3.00122501,1250.5,1250.4,7.00846013]
[1672944014340,3.00122501,1250.5,1250.4,5.59094878]
[1672944014555,0.00302005,1250.5,1250.4,7.00845633]
[1672944015599,3.00122501,1250.5,1250.4,7.00845633]
[1672944015919,0.00302005,1250.5,1250.4,7.00845633]
[1672944016126,0.00302005,1250.5,1250.4,9.98739173]
[1672944017489,0.00302005,1250.5,1250.4,7.60424295]
[1672944017708,2.99820496,1250.7,1250.5,2.50384291]
[1672944017916,2.99820496,1250.7,1250.6,9.88065934]
[1672944018328,2.99820496,1250.7,1250.6,8.68815276]
[1672944019703,9.30921037,1250.8,1250.5,5.48619567]
[1672944019910,2.99607571,1250.6,1250.5,5.48619567]
[1672944020226,13.50982453,1250.8,1250.6,2.5]
[1672944020227,2.99607571,1250.7,1250.6,2.5]
[1672944020439,2.99607571,1250.7,1250.6,3.6920872]
[1672944023381,2.99607571,1250.7,1250.6,1.1920872]
[1672944024009,6.10141037,1250.8,1250.6,1.1920872]
[1672944024220,6.10141037,1250.8,1250.5,8.6940984]
[1672944024428,2.99535101,1250.6,1250.5,8.6940984]
[1672944024642,2.99535101,1250.6,1250.5,8.69389181]
[1672944027171,2.99535101,1250.7,1250.5,7.5020112]
[1672944027383,2.5,1250.6,1250.5,7.5020112]
[1672944027695,2.5,1250.6,1250.5,4.2942112]
[1672944029164,2.99535101,1250.7,1250.5,4.2942112]
[1672944029378,2.99535101,1250.7,1250.6,1.19181269]
[1672944029695,2.99535101,1250.7,1250.6,3.69181269]
[1672944032528,2.99535101,1250.7,1250.6,1.19181269]
[1672944035052,2.98767701,1250.7,1250.6,1.19181269]
[1672944035262,2.98767701,1250.7,1250.6,3.69181269]
[1672944036420,6.10141037,1250.8,1250.6,3.69181269]
[1672944037046,9.30921037,1250.8,1250.6,3.69181269]
[1672944039255,7.80202453,1250.9,1250.6,5.48018098]
[1672944039465,24.59182453,1251.0,1250.7,3.69181269]
[1672944039783,2.5,1250.8,1250.7,3.69181269]
[1672944040410,2.5,1250.8,1250.7,5.48018098]
[1672944040620,2.5,1250.8,1250.7,3.69181269]
[1672944041675,2.5,1250.9,1250.7,3.69181269]
[1672944041885,17.18341037,1251.0,1250.8,1.5]
[1672944042091,13.582,1251.0,1250.8,2.69181269]
[1672944042307,7.80202453,1251.1,1250.8,2.69181269]
[1672944042510,3.60141037,1251.1,1250.8,2.69181269]
[1672944042719,2.5,1251.0,1250.8,7.68798098]
[1672944042930,2.5,1251.0,1250.8,5.89961269]
[1672944043883,5.7078,1251.0,1250.7,5.48018098]
[1672944044089,9.30921037,1251.0,1250.7,3.69181269]
[1672944044409,9.30921037,1251.0,1250.7,5.48018098]
[1672944044722,5.7078,1251.0,1250.7,5.48018098]
[1672944044938,9.30921037,1251.0,1250.7,5.48018098]
[1672944046402,9.30921037,1251.0,1250.7,3.69181269]
[1672944046612,6.10141037,1251.0,1250.7,3.69181269]
[1672944049032,2.5,1251.0,1250.7,5.48018098]
[1672944050190,2.5,1251.0,1250.8,4.39961269]
[1672944050392,2.5,1251.0,1250.9,2.5]
[1672944051021,2.5,1251.0,1250.8,1.5]
[1672944051861,2.5,1251.0,1250.7,5.48018098]
[1672944052388,2.5,1251.0,1250.7,3.69181269]
[1672944052593,6.10141037,1251.0,1250.7,3.69181269]
[1672944055115,2.99239949,1250.9,1250.7,3.69181269]
[1672944055330,5.49239949,1250.8,1250.7,3.69181269]
[1672944055539,2.5,1250.8,1250.7,3.69181269]
[1672944056063,5.49239949,1250.8,1250.7,3.69181269]
[1672944056274,5.49239949,1250.8,1250.7,1.19181269]
[1672944058588,2.5,1250.8,1250.7,1.19181269]
[1672944059114,5.49239949,1250.9,1250.7,2.98018098]
[1672944060690,5.49239949,1250.9,1250.7,1.19181269]
[1672944060895,5.49239949,1250.9,1250.7,2.98018098]
[1672944061316,2.5,1250.9,1250.8,1.19181269]
[1672944061526,5.49239949,1250.9,1250.8,3.69181269]
[1672944063527,2.99239949,1250.9,1250.8,3.69181269]
[1672944063739,5.49239949,1251.0,1250.8,6.89961269]
[1672944065941,2.99239949,1250.9,1250.8,4.39961269]
[1672944066148,2.99239949,1250.9,1250.8,3.2078]
[1672944066681,2.99239949,1250.9,1250.7,2.98018098]
[1672944066993,2.5,1250.8,1250.7,2.98018098]
[1672944068568,2.5,1250.8,1250.7,1.78836829]
[1672944069512,2.5,1250.8,1250.7,4.99616829]
[1672944069721,2.99239949,1250.9,1250.7,4.99616829]
[1672944069939,2.99239949,1250.9,1250.8,1.19006034]
[1672944070150,2.99239949,1250.9,1250.8,3.69006034]
[1672944070357,2.99239949,1250.9,1250.8,1.19006034]
[1672944071093,2.99239949,1250.9,1250.7,6.18622863]
[1672944071307,2.99239949,1250.9,1250.8,1.19006034]
[1672944071511,2.99239949,1250.9,1250.8,3.69006034]
[1672944072663,2.99239949,1250.9,1250.8,1.19006034]
[1672944072987,2.99239949,1250.9,1250.8,3.69006034]
[1672944073615,2.99239949,1250.9,1250.8,6.89786034]
[1672944074459,2.99239949,1250.9,1250.8,8.68622863]
[1672944074672,5.49239949,1251.0,1250.8,8.68622863]
[1672944074879,2.99239949,1250.9,1250.8,8.68622863]
[1672944077091,2.99239949,1250.9,1250.8,6.18622863]
[1672944077404,2.99239949,1250.9,1250.8,4.39786034]
[1672944078658,2.99632591,1250.9,1250.8,6.18622863]
[1672944080869,2.99632591,1250.9,1250.8,2.97842863]
[1672944082232,6.10141037,1251.0,1250.8,1.19006034]
[1672944083398,6.10141037,1251.0,1250.8,2.97842863]
[1672944083918,2.99643267,1250.9,1250.8,2.97842863]
[1672944085288,2.99645846,1250.9,1250.8,2.97842863]
[1672944085600,6.10141037,1251.0,1250.8,2.97842863]
[1672944085811,2.99645203,1250.9,1250.8,2.97842863]
[1672944086226,2.99645203,1250.9,1250.8,1.78836829]
[1672944086647,2.99645203,1250.9,1250.8,2.98000763]
[1672944088860,2.99645203,1250.9,1250.8,1.78836829]
[1672944089496,2.99645203,1250.9,1250.8,2.9800422]
[1672944090121,2.99645203,1250.9,1250.8,1.78836829]
[1672944090539,2.99645203,1250.9,1250.8,6.1877839]
[1672944092011,2.99645203,1250.9,1250.8,4.99616829]
[1672944095164,2.99645203,1250.9,1250.8,6.18807739]
[1672944095366,2.99645203,1250.9,1250.8,4.99616829]
[1672944095577,2.99645203,1250.9,1250.8,6.18807393]
[1672944095801,2.99645203,1250.9,1250.8,6.18807442]
[1672944096228,2.99645203,1250.9,1250.8,4.99616829]
[1672944096535,2.99645203,1250.9,1250.8,1.78836829]
[1672944096750,2.99645203,1250.9,1250.8,4.99616829]
[1672944096955,2.99645203,1250.9,1250.8,6.18832607]
[1672944097172,2.99645203,1250.9,1250.8,4.99616829]
[1672944097379,6.10141037,1251.0,1250.8,6.18835755]
[1672944098331,6.10141037,1251.0,1250.9,1.19218926]
[1672944098536,6.10141037,1251.0,1250.9,3.69218926]
[1672944099584,6.10141037,1251.0,1250.9,1.19218926]
[1672944100850,6.10141037,1251.0,1250.8,2.98055755]
[1672944101900,6.10141037,1251.0,1250.9,1.19218926]
[1672944102103,6.10141037,1251.0,1250.8,2.98055755]
[1672944103476,10.30202453,1251.0,1250.8,2.98055755]
[1672944107159,6.10141037,1251.0,1250.8,2.98055755]
[1672944108527,10.30202453,1251.0,1250.8,2.98055755]
[1672944109361,6.10141037,1251.0,1250.8,2.98055755]
[1672944113040,6.10141037,1251.0,1250.9,1.19218926]
[1672944113784,6.10141037,1251.0,1250.8,2.98055755]
[1672944113986,6.10141037,1251.0,1250.9,2.5]
[1672944114196,6.10141037,1251.0,1250.9,3.69218926]
[1672944115149,6.10141037,1251.0,1250.9,1.19218926]
[1672944115467,6.10141037,1251.0,1250.8,2.98055755]
[1672944116303,6.10141037,1251.0,1250.9,1.19218926]
[1672944116510,6.10141037,1251.0,1250.8,2.98055755]
[1672944116719,2.99780457,1250.9,1250.8,2.98055755]
[1672944116928,6.10141037,1251.0,1250.8,2.98068274]
[1672944117137,2.99782145,1250.9,1250.8,1.78836829]
[1672944117348,2.99782145,1251.0,1250.8,4.3975812]
[1672944117562,2.99782145,1251.1,1250.9,12.48859968]
[1672944117771,2.99782145,1251.1,1251.0,3.88321848]
[1672944118304,2.99782145,1251.1,1251.0,1.5]
[1672944119140,2.99782145,1251.1,1251.0,4.7078]
[1672944119459,5.49782145,1251.2,1251.0,4.7078]
[1672944119653,5.49782145,1251.2,1251.1,1.19041973]
[1672944120081,2.99782145,1251.2,1251.1,1.19041973]
[1672944120292,2.99782145,1251.2,1251.0,5.89821973]
[1672944120612,5.49782145,1251.2,1251.0,5.89821973]
[1672944120818,2.99782145,1251.2,1251.0,5.89821973]
[1672944121343,2.99782145,1251.2,1251.1,1.19041973]
[1672944122078,2.99782145,1251.2,1251.0,5.89821973]
[1672944122394,2.99782145,1251.2,1251.1,1.19041973]
[1672944122605,2.99782145,1251.3,1251.1,1.18936646]
[1672944122810,2.99782145,1251.3,1251.2,4.39709887]
[1672944123021,5.49782145,1251.4,1251.2,3.2078]
[1672944123230,5.49782145,1251.4,1251.3,2.5]
[1672944124285,5.49782145,1251.4,1251.2,3.2078]
[1672944124595,2.99782145,1251.3,1251.2,3.2078]
[1672944124809,5.49782145,1251.4,1251.2,3.2078]
[1672944125019,5.49782145,1251.4,1251.3,2.5]
[1672944125551,2.99782145,1251.4,1251.3,2.5]
[1672944125757,5.49782145,1251.5,1251.3,2.5]
[1672944125963,2.99782145,1251.4,1251.3,2.5]
[1672944126179,5.49782145,1251.5,1251.3,2.5]
[1672944126377,2.99782145,1251.4,1251.3,2.5]
[1672944126911,5.49782145,1251.5,1251.3,2.5]
[1672944128168,2.99782145,1251.5,1251.4,3.2078]
[1672944128384,5.49782145,1251.5,1251.4,3.2078]
[1672944131542,5.49782145,1251.5,1251.3,5.7078]
[1672944132802,2.5,1251.4,1251.3,5.7078]
[1672944133013,2.5,1251.4,1251.3,3.2078]
[1672944134802,2.5,1251.4,1251.2,2.5]
[1672944135018,2.5,1251.4,1251.3,3.2078]
[1672944135433,5.49782145,1251.5,1251.3,3.2078]
[1672944135641,5.49782145,1251.5,1251.4,2.5]
[1672944137015,5.49782145,1251.5,1251.2,5.7078]
[1672944137326,2.5,1251.4,1251.2,5.7078]
[1672944141329,2.5,1251.4,1251.2,2.5]
[1672944142273,2.5,1251.4,1251.2,5.7078]
[1672944143219,2.5,1251.4,1251.2,2.5]
[1672944143636,2.5,1251.4,1251.2,5.7078]
[1672944144266,5.49782145,1251.4,1251.2,5.7078]